Workbook

Sheet AER only (hidden)
B1: Data in these columns used for data validation and database purposes.
B2: Date last modified: | C2: 2017-01-16 | D2: added (Albury and Victora) for AGN
AC4: FOR ELECTRICITY BUSINESSES ONLY
AC5: Feeder Types | AG5: TasNetworks (D) | AH5: MAIFI flag | AI5: Feeder Names
AC6: CBD | AD6: Urban | AE6: Short rural | AF6: long rural | AG6: EXTRA
B7: dms_TradingName_List | C7: dms_TradingNameFull_List | D7: dms_ABN_List | E7: dms_JurisdictionList | F7: dms_Sector_List | G7: dms_Segment_List | H7: dms_FormControl_List | I7: dms_RPT_List | J7: dms_RPTMonth_List | K7: dms_CRCPlength_List | L7: dms_FRCPlength_List | M7: dms_663_List | N7: dms_DeterminationRef_List | O7: dms_Addr1_List | P7: dms_Addr2_List | Q7: dms_Suburb_List | R7: dms_State_List | S7: dms_PostCode_List | T7: dms_PAddr1_List | U7: dms_PAddr2_List | V7: dms_PSuburb_List | W7: dms_PState_List | X7: dms_PPostCode_List | Y7: dms_ContactName1_List | Z7: dms_ContactPh1_List | AA7: dms_ContactEmail_List | AC7: dms_CBD_flag | AD7: dms_Urban_flag | AE7: dms_ShortRural_flag | AF7: dms_LongRural_flag | AG7: dms_FeederType_5_flag | AH7: dms_MAIFI_flag_List | AI7: dms_FeederName_1 | AJ7: dms_FeederName_2 | AK7: dms_FeederName_3 | AL7: dms_FeederName_4 | AM7: dms_FeederName_5
B8: ActewAGL Distribution | C8: ActewAGL Distribution | D8: 76670568688 | E8: ACT | F8: Electricity | G8: Distribution | H8: Revenue cap | I8: Financial | J8: June | K8: 5 | L8: 5 | M8: 5 | N8: 2014-19 Distribution Determination | O8: 40 Bunda Street | Q8: CANBERRA | R8: ACT | S8: 2600 | T8: GPO BOX 366 | V8: CANBERRA | W8: ACT | X8: 2601 | Y8: Robert Walker | Z8: 02 6248 3847 | AA8: robert.walker@actewagle.com.au | AC8: NO | AD8: YES | AE8: YES | AF8: NO | AG8: NO | AI8: CBD | AJ8: Urban | AK8: Short rural | AL8: Long rural | AN8: ActewAGL Distribution
B9: ActewAGL Distribution (Tx Assets) | C9: ActewAGL Distribution (Tx Assets) | D9: 76670568688 | E9: ACT | F9: Electricity | G9: Distribution | H9: Revenue cap | I9: Financial | J9: June | K9: 5 | L9: 5 | M9: 5 | N9: distribution determination | O9: 40 Bunda Street | Q9: CANBERRA | R9: ACT | S9: 2600 | T9: GPO BOX 366 | V9: CANBERRA | W9: ACT | X9: 2601 | Y9: Robert Walker | Z9: 02 6248 3847 | AA9: robert.walker@actewagle.com.au | AI9: CBD | AJ9: Urban | AK9: Short rural | AL9: Long rural | AN9: ActewAGL Distribution (Tx Assets)
B10: ActewAGL Gas | C10: ActewAGL Gas | D10: 76670568688 | E10: ACT | F10: Gas | G10: Distribution | H10: Weighted average price cap | I10: Financial | J10: June | K10: 5 | L10: 5 | M10: x | O10: 40 Bunda Street | Q10: CANBERRA | R10: ACT | S10: 2600 | T10: GPO BOX 366 | V10: CANBERRA | W10: ACT | X10: 2601 | Y10: Philip Deamer | Z10: 02 6248 3438 | AA10: GasAAReview@actewagl.com.au | AN10: ActewAGL Gas
B11: AGN (Albury) | C11: Australian Gas Networks Limited (reporting data for Albury) | D11: 19078551685 | E11: Vic | F11: Gas | G11: Distribution | H11: Weighted average price cap | I11: Calendar | J11: December | K11: 5 | L11: 5 | M11: x | O11: Level 6 | P11: 400 King William Street | Q11: ADELAIDE | R11: SA | S11: 5000 | T11: PO Box 6468 | U11: Halifax Street | V11: ADELAIDE | W11: SA | X11: 5000 | Y11: Craig de Laine | Z11: 08 8418 1129 | AA11: craig.delaine@agn.com.au | AI11: CBD | AJ11: Urban | AK11: Short rural | AL11: Long rural | AN11: AGN (Albury)
B12: AGN (Albury and Victoria) | C12: Australian Gas Networks Limited (reporting data for Albury and Victoria) | D12: 19078551685 | E12: Vic | F12: Gas | G12: Distribution | H12: Weighted average price cap | I12: Calendar | J12: December | K12: 5 | L12: 5 | M12: x | O12: Level 6 | P12: 400 King William Street | Q12: ADELAIDE | R12: SA | S12: 5000 | T12: PO Box 6468 | U12: Halifax Street | V12: ADELAIDE | W12: SA | X12: 5000 | Y12: Craig de Laine | Z12: 08 8418 1129 | AA12: craig.delaine@agn.com.au | AI12: CBD | AJ12: Urban | AK12: Short rural | AL12: Long rural
B13: AGN (SA) | C13: Australian Gas Networks Limited (reporting data for SA) | D13: 19078551685 | E13: SA | F13: Gas | G13: Distribution | H13: Weighted average price cap | I13: Financial | J13: June | K13: 5 | L13: 5 | M13: 5 | N13: distribution determination | O13: Level 6 | P13: 400 King William Street | Q13: ADELAIDE | R13: SA | S13: 5000 | T13: PO Box 6468 | U13: Halifax Street | V13: ADELAIDE | W13: SA | X13: 5000 | Y13: Craig de Laine | Z13: 08 8418 1129 | AA13: craig.delaine@agn.com.au | AN13: AGN (SA)
B14: AGN (Victoria) | C14: Australian Gas Networks Limited (reporting data for Victoria) | D14: 19078551685 | E14: Vic | F14: Gas | G14: Distribution | H14: Weighted average price cap | I14: Calendar | J14: December | K14: 5 | L14: 5 | M14: x | AN14: AGN (Victoria)
B15: Amadeus | C15: APT Pipelines (NT) Pty Ltd | D15: 39009737393 | E15: NT | F15: Gas | G15: Transmission | H15: Weighted average price cap | I15: Financial | J15: June | K15: 5 | L15: 5 | M15: x | N15: n/a | O15: Level 19, HSBC Building | P15: 580 George Street | Q15: SYDNEY | R15: NSW | S15: 2000 | T15: Level 19, HSBC Building | U15: 580 George Street | V15: SYDNEY | W15: NSW | X15: 2000 | Y15: Alexandra Curran | Z15: 02 9275 0020 | AA15: alexandra.curran@apa.com.au | AN15: Amadeus
B16: APA GasNet | C16: APA GasNet Australia (Operations) Pty Ltd | D16: 065083009 | E16: Vic | F16: Gas | G16: Transmission | H16: Weighted average price cap | I16: Calendar | J16: December | K16: 5 | L16: 5 | M16: x | O16: Level 19, HSBC Building | P16: 580 George Street | Q16: SYDNEY | R16: NSW | S16: 2000 | T16: PO Box R41 | V16: ROYAL EXCHANGE | W16: NSW | X16: 1225 | Z16: 02 9693 0000 | AN16: APA GasNet
B17: Ausgrid | C17: Ausgrid | D17: 67505337385 | E17: NSW | F17: Electricity | G17: Distribution | H17: Revenue cap | I17: Financial | J17: June | K17: 5 | L17: 5 | M17: 5 | N17: 2014-19 Distribution Determination | O17: 570 George St | Q17: SYDNEY | R17: NSW | S17: 2000 | Y17: John Thomson | Z17: (02) 9269 2312 | AA17: john.thomson@ausgrid.com.au | AC17: YES | AD17: YES | AE17: YES | AF17: YES | AG17: NO | AI17: CBD | AJ17: Urban | AK17: Short rural | AL17: Long rural | AN17: Ausgrid
B18: Ausgrid (Tx Assets) | C18: Ausgrid (Tx Assets) | D18: 67505337385 | E18: NSW | F18: Electricity | G18: Distribution | H18: Revenue cap | I18: Financial | J18: June | K18: 5 | L18: 5 | M18: 5 | N18: distribution determination | R18: NSW | AI18: CBD | AJ18: Urban | AK18: Short rural | AL18: Long rural | AN18: Ausgrid (Tx Assets)
B19: AusNet (D) | C19: AusNet Services (D) | D19: 91064651118 | E19: Vic | F19: Electricity | G19: Distribution | H19: Revenue cap | I19: Calendar | J19: December | K19: 5 | L19: 5 | M19: 2 | N19: 2016-20 Distribution Determination | O19: Level 32 | P19: 2 Southbank Boulevard | Q19: SOUTHBANK | R19: Vic | S19: 3006 | T19: Locked Bag 14051 | V19: MELBOURNE CITY MAIL CENTRE | W19: VIC | X19: 8001 | Y19: Hannah Williams | Z19: 03 9683 4088 | AA19: hwilliams@powercor.com.au | AD19: YES | AE19: YES | AF19: YES | AG19: NO | AI19: CBD | AJ19: Urban | AK19: Short rural | AL19: Long rural | AN19: AusNet (D)
B20: AusNet (Gas) | C20: AusNet Gas Services | D20: 086015036 | E20: Vic | F20: Gas | G20: Distribution | H20: Weighted average price cap | I20: Calendar | J20: December | K20: 5 | L20: 5 | M20: X | AN20: AusNet (Gas)
B21: AusNet (T) | C21: Ausnet Services (Transmission) Ltd | D21: 48116124362 | E21: Vic | F21: Electricity | G21: Transmission | H21: Revenue cap | I21: Financial | J21: March | K21: 5 | L21: 5 | M21: 2 | N21: transmission determination | O21: Level 32 | P21: 2 Southbank Boulevard | Q21: SOUTHBANK | R21: Vic | S21: 3006 | T21: Locked Bag 14051 | V21: MELBOURNE CITY MAIL CENTRE | W21: Vic | X21: 8001 | Y21: Clare Thompson | Z21: 03 9695 6670 | AA21: clare.e.thompson@ausnetservices.com.au | AI21: CBD | AJ21: Urban | AK21: Short rural | AL21: Long rural | AN21: AusNet (T)
B22: Australian Distribution Co. | C22: Australian Distribution Co. | D22: 11222333444 | E22: - | F22: Electricity | G22: Distribution | H22: Revenue cap | I22: Financial | J22: June | K22: 5 | L22: 5 | M22: 2 | N22: distribution determination | O22: 123 Straight Street | Q22: SYDNEY | R22: NSW | S22: 2000 | T22: PO Box 123 | V22: SYDNEY | W22: NSW | X22: 2000 | Y22: Bob Smith | Z22: 02 1234 5678 | AA22: bob@auselec.net.au | AI22: CBD | AJ22: Urban | AK22: Short rural | AL22: Long rural | AN22: Australian Distribution Co.
B23: Australian Distribution Co. (Vic) | C23: Australian Distribution Co. (Victoria) | D23: 11222333444 | E23: Vic | F23: Electricity | G23: Distribution | H23: Revenue cap | I23: Calendar | J23: December | K23: 5 | L23: 5 | M23: 2 | N23: distribution determination | O23: 123 Straight Street | Q23: MELBOURNE | R23: Vic | S23: 3000 | T23: PO Box 123 | V23: MELBOURNE | W23: VIC | X23: 3000 | Y23: Bob Smith | Z23: 02 1234 5678 | AA23: bob@auselec.net.au | AI23: CBD | AJ23: Urban | AK23: Short rural | AL23: Long rural | AN23: Australian Distribution Co. (Vic)
B24: Australian Transmission Co. | C24: Australian Transmission Co. | D24: 11222333444 | E24: - | F24: Electricity | G24: Transmission | H24: Revenue cap | I24: Financial | J24: June | K24: 5 | L24: 5 | M24: 5 | N24: transmission determination | O24: 123 Straight Street | Q24: SYDNEY | R24: NSW | S24: 2000 | T24: PO Box 123 | V24: SYDNEY | W24: NSW | X24: 2000 | Y24: Bob Smith | Z24: 02 1234 5678 | AA24: bob@auselec.net.au | AI24: CBD | AJ24: Urban | AK24: Short rural | AL24: Long rural | AN24: Australian Transmission Co.
B25: CitiPower | C25: CitiPower | D25: 76064651056 | E25: Vic | F25: Electricity | G25: Distribution | H25: Revenue cap | I25: Calendar | J25: December | K25: 5 | L25: 5 | M25: 2 | N25: 2016-20 Distribution Determination | O25: 40 Market Street | Q25: MELBOURNE | R25: Vic | S25: 3000 | T25: Locked Bag 14090 | V25: MELBOURNE | W25: VIC | X25: 8001 | Y25: Hannah Williams | Z25: 03 9683 4088 | AA25: hwilliams@powercor.com.au | AC25: YES | AD25: YES | AE25: NO | AF25: NO | AG25: NO | AI25: CBD | AJ25: Urban | AK25: Short rural | AL25: Long rural | AN25: CitiPower
B26: Directlink | C26: Directlink | D26: 16779340889 | E26: Qld | F26: Electricity | G26: Transmission | H26: Revenue cap | I26: Financial | J26: June | K26: 9 | L26: 5 | M26: 5 | N26: transmission determination | R26: NSW | AI26: CBD | AJ26: Urban | AK26: Short rural | AL26: Long rural | AN26: Directlink
B27: ElectraNet | C27: ElectraNet | D27: 41094482416 | E27: SA | F27: Electricity | G27: Transmission | H27: Revenue cap | I27: Financial | J27: June | K27: 5 | L27: 5 | M27: 5 | N27: transmission determination | O27: 52-55 East Terrace | P27: Rymill Park | Q27: ADELAIDE | R27: SA | S27: 5000 | T27: PO Box 7096 | U27: Hutt Street Post Office | V27: ADELAIDE | W27: SA | X27: 5000 | Y27: Bill Jackson | Z27: 08 8404 7969 | AA27: jackson.bill@electranet.com.au | AI27: CBD | AJ27: Urban | AK27: Short rural | AL27: Long rural | AN27: ElectraNet
B28: Endeavour Energy | C28: Endeavour Energy | D28: 11247365823 | E28: NSW | F28: Electricity | G28: Distribution | H28: Revenue cap | I28: Financial | J28: June | K28: 5 | L28: 5 | M28: 5 | N28: 2014-19 Distribution Determination | O28: 51 Huntingwood Drive | Q28: HUNTINGWOOD | R28: NSW | S28: 2148 | T28: PO Box 811 | V28: SEVEN HILLS | W28: NSW | X28: 1730 | Y28: Jon Hocking | Z28: 02 9853 4386 / 0407 348 156 | AA28: Jon.Hocking@Endeavourenergy.com.au | AC28: NO | AD28: YES | AE28: YES | AF28: YES | AG28: NO | AI28: CBD | AJ28: Urban | AK28: Short rural | AL28: Long rural | AN28: Endeavour Energy
B29: Energex | C29: Energex | D29: 40078849055 | E29: Qld | F29: Electricity | G29: Distribution | H29: Revenue cap | I29: Financial | J29: June | K29: 5 | L29: 5 | M29: 5 | N29: 2015-20 Distribution Determination | O29: 26 Reddacliff Street | Q29: NEWSTEAD | R29: Qld | S29: 4006 | T29: 26 Reddacliff Street | V29: NEWSTEAD | W29: QLD | X29: 4006 | Y29: Nicola Roscoe | Z29: 07 3664 5891 | AA29: nicolaroscoe@energex.com.au | AC29: YES | AD29: YES | AE29: YES | AF29: NO | AG29: NO | AI29: CBD | AJ29: Urban | AK29: Short rural | AL29: Long rural | AN29: Energex
B30: Ergon Energy | C30: Ergon Energy | D30: 50087646062 | E30: Qld | F30: Electricity | G30: Distribution | H30: Revenue cap | I30: Financial | J30: June | K30: 5 | L30: 5 | M30: 5 | N30: 2015-20 Distribution Determination | O30: 22 Walker Street | Q30: TOWNSVILLE | R30: Qld | S30: 4810 | T30: Po Box 264 | V30: FORTITUDE VALLEY | W30: QLD | X30: 4006 | Y30: Jenny Doyle, Group Manager Regulatory Affairs | Z30: (07) 3851 6416 | AA30: jenny.doyle@ergon.com.au | AC30: NO | AD30: YES | AE30: YES | AF30: YES | AG30: NO | AI30: CBD | AJ30: Urban | AK30: Short rural | AL30: Long rural | AN30: Ergon Energy
B31: Essential Energy | C31: Essential Energy | D31: 37428185226 | E31: NSW | F31: Electricity | G31: Distribution | H31: Revenue cap | I31: Financial | J31: June | K31: 5 | L31: 5 | M31: 5 | N31: 2014-19 Distribution Determination | O31: 8 Buller Street | Q31: PORT MACQUARIE | R31: NSW | S31: 2444 | T31: PO Box 5730 | V31: PORT MACQUARIE | W31: NSW | X31: 2444 | Y31: Catherine Waddell | Z31: 02 6338 3553 | AA31: catherine.waddell@essentialenergy.com.au | AE31: YES | AF31: YES | AG31: NO | AI31: CBD | AJ31: Urban | AK31: Short rural | AL31: Long rural | AN31: Essential Energy
B32: Jemena Electricity | C32: Jemena Electricity | D32: 82064651083 | E32: Vic | F32: Electricity | G32: Distribution | H32: Revenue cap | I32: Calendar | J32: December | K32: 5 | L32: 5 | M32: 2 | N32: 2016-20 Distribution Determination | O32: Level 16 | P32: 567 Collins Street | Q32: MELBOURNE | R32: VIC | S32: 3000 | T32: PO Box 16182 | V32: MELBOURNE | W32: VIC | X32: 8001 | Y32: Robert McMillan | Z32: 03 9173 7000 | AA32: robert.mcmillan@jemena.com.au | AE32: YES | AF32: NO | AG32: NO | AI32: CBD | AJ32: Urban | AK32: Short rural | AL32: Long rural | AN32: Jemena Electricity
B33: JGN | C33: Jemena Gas Networks (NSW) Ltd | D33: 003 004 322 | E33: NSW | F33: Gas | G33: Distribution | H33: Weighted average price cap | I33: Financial | J33: June | K33: 5 | L33: 5 | AN33: JGN
B34: Multinet Gas | C34: Multinet Gas (DB No.1) Pty Ltd (ACN 086 026 986), Multinet Gas (DB No.2) Pty Ltd (ACN 086 230 122) | D34: 086026986 | E34: Vic | F34: Gas | G34: Distribution | H34: Weighted average price cap | I34: Calendar | J34: December | K34: 5 | L34: 5 | M34: x | O34: 6 Nexus Court | Q34: MULGRAVE | R34: Vic | S34: 3149 | Y34: Stephanie McDougall | Z34: 03 8846 9538 | AA34: Stephanie.McDougall@ue.com.au | AN34: Multinet Gas
B35: Murraylink | C35: Murraylink | D35: 79181207909 | E35: SA | F35: Electricity | G35: Transmission | H35: Revenue cap | I35: Financial | J35: June | K35: 5 | L35: 5 | M35: 5 | N35: transmission determination | AI35: CBD | AJ35: Urban | AK35: Short rural | AL35: Long rural | AN35: Murraylink
B36: Power and Water | C36: Power and Water Corporation | D36: 15947352360 | E36: NT | F36: Electricity | G36: Distribution | H36: Revenue cap | I36: Financial | J36: June | K36: 11 | L36: 5 | M36: x | N36: distribution determination | O36: GPO Box 1921 | Q36: DARWIN | R36: NT | S36: 0801 | T36: GPO Box 1921 | V36: DARWIN | W36: NT | X36: 0801 | AC36: YES | AD36: YES | AE36: YES | AF36: YES | AG36: NO
B37: Powercor Australia | C37: Powercor Australia | D37: 89064651109 | E37: Vic | F37: Electricity | G37: Distribution | H37: Revenue cap | I37: Calendar | J37: December | K37: 5 | L37: 5 | M37: 2 | N37: 2016-20 Distribution Determination | O37: 40 Market Street | Q37: MELBOURNE | R37: Vic | S37: 3000 | T37: Locked bag 14090 | V37: MELBOURNE | W37: VIC | X37: 8001 | Y37: Hannah Williams | Z37: 03 9683 4088 | AA37: hwilliams@powercor.com.au | AE37: YES | AF37: YES | AG37: NO | AI37: CBD | AJ37: Urban | AK37: Short rural | AL37: Long rural | AN37: Powercor Australia
B38: Powerlink | C38: Queensland Electricity Transmission Corporation Limited trading as Powerlink Queensland | D38: 82078849233 | E38: Qld | F38: Electricity | G38: Transmission | H38: Revenue cap | I38: Financial | J38: June | K38: 5 | L38: 5 | M38: 5 | N38: transmission determination | O38: 33 Harold St | Q38: VIRGINIA | R38: Qld | S38: 4014 | T38: PO Box 1193 | V38: VIRGINIA | W38: QLD | X38: 4014 | Y38: Jennifer Harris | Z38: 07 3860 2667 | AA38: jharris@powerlink.com.au | AI38: CBD | AJ38: Urban | AK38: Short rural | AL38: Long rural | AN38: Powerlink
B39: Roma to Brisbane Pipeline | C39: APT Petroleum Pipelines Limited t/a Roma to Brisbane Pipeline | D39: 009 737 393 | E39: Qld | F39: Gas | G39: Transmission | H39: Weighted average price cap | I39: Financial | J39: June | K39: 5 | L39: 5 | M39: x | N39: n/a | AI39: CBD | AJ39: Urban | AK39: Short rural | AL39: Long rural | AN39: Roma to Brisbane Pipeline
B40: SA Power Networks | C40: SA Power Networks | D40: 13332330749 | E40: SA | F40: Electricity | G40: Distribution | H40: Revenue cap | I40: Financial | J40: June | K40: 5 | L40: 5 | M40: 5 | N40: 2015-20 Distribution Determination | O40: 1 Anzac Highway | Q40: KESWICK | R40: SA | S40: 5035 | T40: GPO Box 77 | V40: ADELAIDE | W40: SA | X40: 5000 | Y40: Damien O'Connor | Z40: 08 8404 5066 | AA40: damien.oconnor@sapowernetworks.com.au | AE40: YES | AF40: YES | AG40: NO | AI40: CBD | AJ40: Urban | AK40: Short rural | AL40: Long rural | AN40: SA Power Networks
B41: TasNetworks (D) | C41: TasNetworks (D) | D41: 24167357299 | E41: Tas | F41: Electricity | G41: Distribution | H41: Revenue cap | I41: Financial | J41: June | K41: 5 | L41: 5 | M41: 5 | N41: distribution determination | O41: 21 Kirksway Place | Q41: HOBART | R41: Tas | S41: 7000 | T41: GPO Box 191 | V41: HOBART | W41: Tas | X41: 7000 | Y41: Leigh Mayne | Z41: 03 6270 3691 | AA41: rrp2012@auroraenergy.com.au | AE41: YES | AF41: YES | AG41: YES | AI41: Critical Infrastructure | AJ41: High density commercial | AK41: Urban | AL41: High density rural | AM41: Low density rural | AN41: TasNetworks (D)
B42: TasNetworks (T) | C42: TasNetworks (T) | D42: 24167357299 | E42: Tas | F42: Electricity | G42: Transmission | H42: Revenue cap | I42: Financial | J42: June | K42: 5 | L42: 5 | M42: 5 | N42: transmission determination | O42: 1-7 Maria Street | Q42: LENAH VALLEY | R42: Tas | S42: 7008 | T42: PO Box 606 | V42: MOONAH | W42: Tas | X42: 7009 | Y42: Heath Dillon | Z42: 03 6274 3664 | AA42: heath.dillon@transend.com.au | AI42: CBD | AJ42: Urban | AK42: Short rural | AL42: Long rural | AN42: TasNetworks (T)
B43: TransGrid | C43: NSW Electricity Networks Operations Pty Ltd trading as TransGrid | D43: 609169959 | E43: NSW | F43: Electricity | G43: Transmission | H43: Revenue cap | I43: Financial | J43: June | K43: 5 | L43: 4 | M43: 5 | N43: transmission determination | O43: 180 Thomas Street | Q43: SYDNEY | R43: NSW | S43: 2000 | T43: PO Box A1000 | V43: SYDNEY SOUTH | W43: NSW | X43: 1235 | Y43: Garrie Chubb | Z43: 0408 210 221 | AA43: garrie.chubb@transgrid.com.au | AI43: CBD | AJ43: Urban | AK43: Short rural | AL43: Long rural | AN43: TransGrid
B44: United Energy | C44: United Energy | D44: 70064651029 | E44: Vic | F44: Electricity | G44: Distribution | H44: Revenue cap | I44: Calendar | J44: December | K44: 5 | L44: 5 | M44: 2 | N44: 2016-20 Distribution Determination | O44: Level 3 | P44: 6 Nexus Court | Q44: MULGRAVE | R44: Vic | S44: 3149 | T44: PO Box 449 | V44: MOUNT WAVERLEY | W44: VIC | X44: 3170 | Y44: Mathew Abraham | Z44: 03 8846 9758 | AA44: mathew.abraham@ue.com.au | AE44: YES | AF44: NO | AG44: NO | AI44: CBD | AJ44: Urban | AK44: Short rural | AL44: Long rural | AN44: United Energy
B45: Western Power (D) | C45: Western Power (D) | D45: 18540492861 | E45: WA | F45: Electricity | G45: Distribution | H45: Revenue cap | I45: Financial | J45: June | K45: 12 | L45: 4 | M45: x | N45: distribution determination | O45: 363 Wellington Street | Q45: PERTH | R45: WA | S45: 6000 | T45: GPO Box L921 | V45: PERTH | W45: WA | X45: 6842 | Y45: Judy Hunter | Z45: 08 9326 6239 | AA45: judy.hunter@westernpower.com.au | AE45: YES | AF45: YES | AG45: NO | AH45: NO | AI45: CBD | AJ45: Urban | AK45: Short rural | AL45: Long rural | AN45: Western Power (D)
B46: Western Power (T) | C46: Western Power (T) | D46: 18540492861 | E46: WA | F46: Electricity | G46: Transmission | H46: Revenue cap | I46: Financial | J46: June | K46: 12 | L46: 4 | M46: x | N46: transmission determination | O46: 363 Wellington Street | Q46: PERTH | R46: WA | S46: 6000 | T46: GPO Box L921 | V46: PERTH | W46: WA | X46: 6842 | Y46: Judy Hunter | Z46: 08 9326 6239 | AA46: judy.hunter@westernpower.com.au | AE46: YES | AF46: YES | AG46: NO | AI46: CBD | AJ46: Urban | AK46: Short rural | AL46: Long rural | AN46: Western Power (T)
W49: For EB & Reset RINs only | AC49: For AARs only
B50: The Reg Year Ending (dms_RYE) must be set to the last year of the regulatory period. For forecast data is is usually (FRCP_y5) for actual it is a single year (CRY). For historical actual data the RYE will need to be set manually in the business details sheet by setting the dms_Multiyear_flag to 1 and putting the correct value in 'dms_Specified_FinalYear. See cells C67:C68 | G50: =IF(dms_RPT="financial",VALUE(LEFT(CRCP_y1,4)-1)&"-"&TEXT(VALUE(RIGHT(CRCP_y1,2)-1),"00"),VALUE(LEFT(CRCP_y1,4)-1)) -> 2007-08 | N50: Drop down selector box for CA & Reset RINs. | O50: For CA & Reset RINs only | W50: for DNSP only | AC50: For DNSPs only | AI50: Reason for interruption | AJ50: dms_Reason_Interruption_Detailed | AK50: dms_Reason_Interruption
B51: dms_Model_List | C51: DELETE NR 'CRY' IF NOT AN ANNUAL RIN (EB, CA , ARR) | E51: dms_RYE_Formula_Result | N51: dms_0203_ProjectType | O51: dms_020303_01_UOM | P51: dms_020501_01_UOM | Q51: dms_020501_02_UOM | R51: dms_020501_03_UOM | S51: dms_020501_04_UOM | T51: dms_020603_01_UOM | U51: dms_040102_01_UOM | V51: dms_040102_04_UOM | W51: dms_030601_01_UOM | X51: dms_030601_02_UOM | Y51: dms_030701_01_UOM | Z51: dms_030702_01_UOM | AA51: dms_030703_01_UOM | AC51: dms_030605_UOM | AD51: dms_03060703_UOM | AI51: Animal | AJ51: Animal impact | AK51: Animal
B52: ARR | C52: ANNUAL REPORTING STATEMENT | E52: =LEFT(dms_SingleYear_FinalYear_Result,2)&RIGHT(dms_SingleYear_FinalYear_Result,2) -> 2009 | F52: =LEFT(dms_SingleYear_FinalYear_Result,2)&RIGHT(dms_SingleYear_FinalYear_Result,2) | H52: Formula errors are OK | N52: New line on new route - single circuit | O52: Circuit line length in km | P52: 0's | Q52: 0's | R52: 0's | S52: 0's | T52: 0's | U52: 0's | V52: days | W52: minutes/customer | X52: minutes/customer | Y52: Customer / km | Z52: % | AA52: km | AC52: number | AD52: number | AJ52: Animal nesting/burrowing, etc and other | AK52: Asset failure
B53: CA | C53: CATEGORY ANALYSIS | E53: =LEFT(dms_SingleYear_FinalYear_Result,2)&RIGHT(dms_SingleYear_FinalYear_Result,2) -> 2009 | F53: =LEFT(dms_SingleYear_FinalYear_Result,2)&RIGHT(dms_SingleYear_FinalYear_Result,2) | H53: Formula errors are OK | N53: New line on new route - dual circuit | O53: Circuit line length in km | P53: 0's | Q53: 0's | R53: 0's | S53: 0's | T53: 0's | U53: 0's | V53: 0's | W53: minutes/customer | X53: minutes/customer | Y53: MWh/customer | Z53: Number of spans | AC53: number | AD53: number | AJ53: Other | AK53: Other
B54: CPI | C54: CPI | N54: New line on new route - other | O54: Circuit line length in km | P54: MVA added | Q54: MVA added | R54: MVA added | S54: MVA added | T54: 0's | U54: 0's | V54: $0s | W54: interruptions/customer | X54: interruptions/customer | Y54: kVA / customer | Z54: Number of spans | AC54: number | AD54: number | AI54: Asset failure | AJ54: LV | AK54: Overloads
B55: EB | C55: ECONOMIC BENCHMARKING | E55: =LEFT(dms_SingleYear_FinalYear_Result,2)&RIGHT(dms_SingleYear_FinalYear_Result,2) -> 2009 | F55: =LEFT(dms_SingleYear_FinalYear_Result,2)&RIGHT(dms_SingleYear_FinalYear_Result,2) | H55: Formula errors are OK | N55: Line rebuild over existing route - single circuit | O55: Circuit line length in km | P55: 0's | Q55: 0's | R55: 0's | S55: 0's | T55: 0's | U55: $0s | V55: 0's | W55: interruptions/customer | X55: interruptions/customer | Z55: Number of spans | AC55: number | AD55: number | AJ55: Distribution substation | AK55: Planned
B56: PTRM | C56: POST TAX REVENUE MODEL | E56: =LEFT(dms_MultiYear_FinalYear_Result,2)&RIGHT(dms_MultiYear_FinalYear_Result,2) -> 2017 | F56: =LEFT(dms_MultiYear_FinalYear_Result,2)&RIGHT(dms_MultiYear_FinalYear_Result,2) | N56: Line rebuild over existing route - dual circuit | O56: Number | P56: total spend $0s | Q56: total spend $0s | R56: total spend $0s | S56: total spend $0s | T56: (per cent) | Z56: Number of spans | AC56: number | AD56: (per cent) | AJ56: HV | AK56: Network business
B57: Reset | C57: REGULATORY REPORTING STATEMENT | E57: =LEFT(dms_MultiYear_FinalYear_Result,2)&RIGHT(dms_MultiYear_FinalYear_Result,2) -> 2017 | F57: =LEFT(dms_MultiYear_FinalYear_Result,2)&RIGHT(dms_MultiYear_FinalYear_Result,2) | H57: Formula errors are OK | N57: Reconductor - Single circuit | O57: Number | P57: net circuit km added | Q57: net circuit km added | R57: net circuit km added | S57: net circuit km added | Z57: Years | AC57: number | AJ57: Zone substation | AK57: Third party
B58: RFM | C58: ROLL FORWARD MODEL | E58: =LEFT(dms_CRCP_FinalYear_Result,2)&RIGHT(dms_CRCP_FinalYear_Result,2) -> 2017 | F58: =LEFT(dms_CRCP_FinalYear_Result,2)&RIGHT(dms_CRCP_FinalYear_Result,2) | N58: Reconductor - Dual circuit | O58: Number | P58: total spend $0s | Q58: total spend $0s | R58: total spend $0s | S58: total spend $0s | Z58: Years | AC58: number | AJ58: Subtransmission | AK58: Unknown
B59: WACC | C59: WEIGHTED AVERAGE COST OF CAPITAL | E59: =LEFT(dms_MultiYear_FinalYear_Result,2)&RIGHT(dms_MultiYear_FinalYear_Result,2) -> 2017 | F59: =LEFT(dms_MultiYear_FinalYear_Result,2)&RIGHT(dms_MultiYear_FinalYear_Result,2) | N59: Other | P59: net circuit km added | Q59: net circuit km added | R59: net circuit km added | S59: net circuit km added | Z59: Trees | AC59: number | AI59: Other | AJ59: insert description of 'other' | AK59: Vegetation
P60: total spend $0s | Q60: total spend $0s | R60: total spend $0s | S60: total spend $0s | Z60: Trees | AC60: number | AI60: Overloads | AJ60: - | AK60: Weather
B61: dms_DataQuality_List | P61: 0's | R61: $0s | Z61: Defects | AC61: number | AI61: Planned | AJ61: - | AK61: 2 - STPIS Exclusion (3.3)(a)
B62: Actual | P62: 0's | Z62: Defects | AC62: number | AI62: Network business | AJ62: Network error | AK62: 3 - STPIS Exclusion (3.3)(a)
B63: Estimate | P63: 0's | Z63: Spans | AC63: number | AJ63: Switching and protection error | AK63: 4 - STPIS Exclusion (3.3)(a)
B64: Consolidated | P64: $0s | Z64: km | AC64: (per cent) | AI64: Third party | AJ64: Fire | AK64: 5 - STPIS Exclusion (3.3)(a)
B65: Recast | Z65: Spans | AC65: (per cent) | AJ65: Other | AK65: 6 - STPIS Exclusion (3.3)(a)
B66: Public | AJ66: Dig-in | AK66: 7 - STPIS Exclusion (3.3)(a)
AJ67: Unauthorised access
B68: For all files either AER or business needs to be able to specify the type of submission | C68: For PTRM & RFM templates we must provide a choice in case they change their form of control - otherwise it is drawn from the business specific lookup table above. | O68: For PTRM files - this field set the text for the named range "DMS_Xfactor" which in all cases is simply the text "x factors" - this saves putting in each old gas PTRM file | W68: for TNSP only | AJ68: Vehicle impact
B69: dms_SourceList | C69: dms_FormControl_Choices | O69: DMS_Xfactor | W69: dms_030601_01_UOM | Y69: dms_030701_01_UOM | Z69: dms_030702_01_UOM | AI69: Unknown | AJ69: Unknown
B70: After appeal | C70: Revenue cap | O70: x factors | W70: % | Y70: Number of spans | Z70: km | AI70: Vegetation | AJ70: Blow-in/Fall-in - NSP responsibility
B71: Draft decision | C71: Revenue yield | W71: number | Y71: Years | Z71: % | AJ71: Grow-in - NSP responsibility
B72: Final decision | C72: Weighted average price cap | W72: number | Y72: Trees | Z72: km | AJ72: Blow-in/Fall-in - Other responsible party
B73: PTRM update 1 | W73: % | Y73: Defects | Z73: number | AJ73: Grow-in - Other responsible party
B74: PTRM update 2 | W74: number | Y74: Number of spans | AI74: Weather
B75: PTRM update 3 | W75: number | Y75: km | AI75: 2 - STPIS Exclusion (3.3)(a)
B76: PTRM update 4 | W76: % | Y76: km | AI76: 3 - STPIS Exclusion (3.3)(a)
B77: PTRM update 5 | W77: number | Y77: Number of spans | AI77: 4 - STPIS Exclusion (3.3)(a)
B78: PTRM update 6 | W78: number | AI78: 5 - STPIS Exclusion (3.3)(a)
B79: PTRM update 7 | W79: % | AI79: 6 - STPIS Exclusion (3.3)(a)
B80: Regulatory proposal | W80: number | AI80: 7 - STPIS Exclusion (3.3)(a)
B81: Reporting | W81: %
B82: Revised regulatory proposal | W82: number
W83: %
W84: number
B88: These are indeces and lookup values for various dates. All step from the value placed in FRCP_y1 on the business and other details worksheet | L88: These date tables are currently used in the Recast templates to provide column headings and conditional formatting
B89: dms_FRCPlength_Num_List | C89: dms_FinalYear_List | D89: dms_CRCPlength_Num_List | E89: dms_CFinalYear_List | F89: dms_FRCP_years | H89: dms_CRCP_years | J89: dms_CRCP_index | L89: CRY from input cell on business sheet | M89: CRY - financial | N89: dms_FinYears | O89: CRY calendar | P89: dms_CalYears
B90: 1 | C90: dms_FRCP_y1 | D90: 1 | E90: CRCP_y1 | F90: =FRCP_y1 -> 2019-20 | G90: dms_FRCP_y1 | H90: =IF(dms_RPT="financial",VALUE(LEFT(dms_FRCP_y1,4)-1)&"-"&TEXT(VALUE(MID(dms_FRCP_y1,3,2)),"00"),VALUE(LEFT(dms_FRCP_y1,4)-1)) -> 2018-19 | I90: dms_CRCP_yZ | J90: 1 | L90: =CRY -> 2008-09 | M90: =VALUE(LEFT(CRY,4))&"-"&TEXT(MID(CRY,3,2)+1,"00") -> 2008-09 | N90: dms_CRYf_y1 | O90: =VALUE(LEFT(CRY,4)+1) -> 2009 | P90: dms_CRYc_y1
B91: 2 | C91: dms_FRCP_y2 | D91: 2 | E91: CRCP_y2 | F91: =IF(dms_RPT="financial",VALUE(LEFT(dms_FRCP_y1,4)+1)&"-"&TEXT(VALUE(RIGHT(dms_FRCP_y1,2)+1),"00"),VALUE(LEFT(dms_FRCP_y1,4)+1)) -> 2020-21 | G91: dms_FRCP_y2 | H91: =IF(dms_RPT="financial",VALUE(LEFT(dms_CRCP_yZ,4)-1)&"-"&TEXT(VALUE(MID(dms_CRCP_yZ,3,2)),"00"),VALUE(LEFT(dms_CRCP_yZ,4)-1)) -> 2017-18 | I91: dms_CRCP_yY | J91: 2 | M91: =VALUE(LEFT(dms_CRYf_y1,4)+1)&"-"&TEXT(MID(dms_CRYf_y1,3,2)+2,"00") -> 2009-10 | N91: dms_CRYf_y2 | O91: =VALUE(LEFT(dms_CRYc_y1,4)+1) -> 2010 | P91: dms_CRYc_y2
B92: 3 | C92: dms_FRCP_y3 | D92: 3 | E92: CRCP_y3 | F92: =IF(dms_RPT="financial",VALUE(LEFT(dms_FRCP_y2,4)+1)&"-"&TEXT(VALUE(RIGHT(dms_FRCP_y2,2)+1),"00"),VALUE(LEFT(dms_FRCP_y2,4)+1)) -> 2021-22 | G92: dms_FRCP_y3 | H92: =IF(dms_RPT="financial",VALUE(LEFT(dms_CRCP_yY,4)-1)&"-"&TEXT(VALUE(MID(dms_CRCP_yY,3,2)),"00"),VALUE(LEFT(dms_CRCP_yY,4)-1)) -> 2016-17 | I92: dms_CRCP_yX | J92: 3 | M92: =VALUE(LEFT(dms_CRYf_y2,4)+1)&"-"&TEXT(MID(dms_CRYf_y2,3,2)+2,"00") -> 2010-11 | N92: dms_CRYf_y3 | O92: =VALUE(LEFT(dms_CRYc_y2,4)+1) -> 2011 | P92: dms_CRYc_y3
B93: 4 | C93: dms_FRCP_y4 | D93: 4 | E93: CRCP_y4 | F93: =IF(dms_RPT="financial",VALUE(LEFT(dms_FRCP_y3,4)+1)&"-"&TEXT(VALUE(RIGHT(dms_FRCP_y3,2)+1),"00"),VALUE(LEFT(dms_FRCP_y3,4)+1)) -> 2022-23 | G93: dms_FRCP_y4 | H93: =IF(dms_RPT="financial",VALUE(LEFT(dms_CRCP_yX,4)-1)&"-"&TEXT(VALUE(MID(dms_CRCP_yX,3,2)),"00"),VALUE(LEFT(dms_CRCP_yX,4)-1)) -> 2015-16 | I93: dms_CRCP_yW | J93: 4 | M93: =VALUE(LEFT(dms_CRYf_y3,4)+1)&"-"&TEXT(MID(dms_CRYf_y3,3,2)+2,"00") -> 2011-12 | N93: dms_CRYf_y4 | O93: =VALUE(LEFT(dms_CRYc_y3,4)+1) -> 2012 | P93: dms_CRYc_y4
B94: 5 | C94: dms_FRCP_y5 | D94: 5 | E94: CRCP_y5 | F94: =IF(dms_RPT="financial",VALUE(LEFT(dms_FRCP_y4,4)+1)&"-"&TEXT(VALUE(RIGHT(dms_FRCP_y4,2)+1),"00"),VALUE(LEFT(dms_FRCP_y4,4)+1)) -> 2023-24 | G94: dms_FRCP_y5 | H94: =IF(dms_RPT="financial",VALUE(LEFT(dms_CRCP_yW,4)-1)&"-"&TEXT(VALUE(MID(dms_CRCP_yW,3,2)),"00"),VALUE(LEFT(dms_CRCP_yW,4)-1)) -> 2014-15 | I94: dms_CRCP_yV | J94: 5 | M94: =VALUE(LEFT(dms_CRYf_y4,4)+1)&"-"&TEXT(MID(dms_CRYf_y4,3,2)+2,"00") -> 2012-13 | N94: dms_CRYf_y5 | O94: =VALUE(LEFT(dms_CRYc_y4,4)+1) -> 2013 | P94: dms_CRYc_y5
B95: 6 | C95: dms_FRCP_y6 | D95: 6 | E95: CRCP_y6 | F95: =IF(dms_RPT="financial",VALUE(LEFT(dms_FRCP_y5,4)+1)&"-"&TEXT(VALUE(RIGHT(dms_FRCP_y5,2)+1),"00"),VALUE(LEFT(dms_FRCP_y5,4)+1)) -> 2024-25 | G95: dms_FRCP_y6 | H95: =IF(dms_RPT="financial",VALUE(LEFT(dms_CRCP_yV,4)-1)&"-"&TEXT(VALUE(MID(dms_CRCP_yV,3,2)),"00"),VALUE(LEFT(dms_CRCP_yV,4)-1)) -> 2013-14 | I95: dms_CRCP_yU | J95: 6 | M95: =VALUE(LEFT(dms_CRYf_y5,4)+1)&"-"&TEXT(MID(dms_CRYf_y5,3,2)+2,"00") -> 2013-14 | N95: dms_CRYf_y6 | O95: =VALUE(LEFT(dms_CRYc_y5,4)+1) -> 2014 | P95: dms_CRYc_y6
B96: 7 | C96: dms_FRCP_y7 | D96: 7 | E96: CRCP_y7 | F96: =IF(dms_RPT="financial",VALUE(LEFT(dms_FRCP_y6,4)+1)&"-"&TEXT(VALUE(RIGHT(dms_FRCP_y6,2)+1),"00"),VALUE(LEFT(dms_FRCP_y6,4)+1)) -> 2025-26 | G96: dms_FRCP_y7 | H96: =IF(dms_RPT="financial",VALUE(LEFT(dms_CRCP_yU,4)-1)&"-"&TEXT(VALUE(MID(dms_CRCP_yU,3,2)),"00"),VALUE(LEFT(dms_CRCP_yU,4)-1)) -> 2012-13 | I96: dms_CRCP_yT | J96: 7 | M96: =VALUE(LEFT(dms_CRYf_y6,4)+1)&"-"&TEXT(MID(dms_CRYf_y6,3,2)+2,"00") -> 2014-15 | N96: dms_CRYf_y7 | O96: =VALUE(LEFT(dms_CRYc_y6,4)+1) -> 2015 | P96: dms_CRYc_y7
B97: 8 | C97: dms_FRCP_y8 | D97: 8 | E97: CRCP_y8 | F97: =IF(dms_RPT="financial",VALUE(LEFT(dms_FRCP_y7,4)+1)&"-"&TEXT(VALUE(RIGHT(dms_FRCP_y7,2)+1),"00"),VALUE(LEFT(dms_FRCP_y7,4)+1)) -> 2026-27 | G97: dms_FRCP_y8 | H97: =IF(dms_RPT="financial",VALUE(LEFT(dms_CRCP_yT,4)-1)&"-"&TEXT(VALUE(MID(dms_CRCP_yT,3,2)),"00"),VALUE(LEFT(dms_CRCP_yT,4)-1)) -> 2011-12 | I97: dms_CRCP_yS | J97: 8 | M97: =VALUE(LEFT(dms_CRYf_y7,4)+1)&"-"&TEXT(MID(dms_CRYf_y7,3,2)+2,"00") -> 2015-16 | N97: dms_CRYf_y8 | O97: =VALUE(LEFT(dms_CRYc_y7,4)+1) -> 2016 | P97: dms_CRYc_y8
B98: 9 | C98: dms_FRCP_y9 | D98: 9 | E98: CRCP_y9 | F98: =IF(dms_RPT="financial",VALUE(LEFT(dms_FRCP_y8,4)+1)&"-"&TEXT(VALUE(RIGHT(dms_FRCP_y8,2)+1),"00"),VALUE(LEFT(dms_FRCP_y8,4)+1)) -> 2027-28 | G98: dms_FRCP_y9 | H98: =IF(dms_RPT="financial",VALUE(LEFT(dms_CRCP_yS,4)-1)&"-"&TEXT(VALUE(MID(dms_CRCP_yS,3,2)),"00"),VALUE(LEFT(dms_CRCP_yS,4)-1)) -> 2010-11 | I98: dms_CRCP_yR | J98: 9 | M98: =VALUE(LEFT(dms_CRYf_y8,4)+1)&"-"&TEXT(MID(dms_CRYf_y8,3,2)+2,"00") -> 2016-17 | N98: dms_CRYf_y9 | O98: =VALUE(LEFT(dms_CRYc_y8,4)+1) -> 2017 | P98: dms_CRYc_y9
B99: 10 | C99: dms_FRCP_y10 | D99: 10 | E99: CRCP_y10 | F99: =IF(dms_RPT="financial",VALUE(LEFT(dms_FRCP_y9,4)+1)&"-"&TEXT(VALUE(RIGHT(dms_FRCP_y9,2)+1),"00"),VALUE(LEFT(dms_FRCP_y9,4)+1)) -> 2028-29 | G99: dms_FRCP_y10 | H99: =IF(dms_RPT="financial",VALUE(LEFT(dms_CRCP_yR,4)-1)&"-"&TEXT(VALUE(MID(dms_CRCP_yR,3,2)),"00"),VALUE(LEFT(dms_CRCP_yR,4)-1)) -> 2009-10 | I99: dms_CRCP_yQ | J99: 10 | M99: =VALUE(LEFT(dms_CRYf_y9,4)+1)&"-"&TEXT(MID(dms_CRYf_y9,3,2)+2,"00") -> 2017-18 | N99: dms_CRYf_y10 | O99: =VALUE(LEFT(dms_CRYc_y9,4)+1) -> 2018 | P99: dms_CRYc_y10
B100: 11 | C100: dms_FRCP_y11 | D100: 11 | E100: CRCP_y11 | F100: =IF(dms_RPT="financial",VALUE(LEFT(dms_FRCP_y10,4)+1)&"-"&TEXT(VALUE(RIGHT(dms_FRCP_y10,2)+1),"00"),VALUE(LEFT(dms_FRCP_y10,4)+1)) -> 2029-30 | G100: dms_FRCP_y11 | H100: =IF(dms_RPT="financial",VALUE(LEFT(dms_CRCP_yQ,4)-1)&"-"&TEXT(VALUE(MID(dms_CRCP_yQ,3,2)),"00"),VALUE(LEFT(dms_CRCP_yQ,4)-1)) -> 2008-09 | I100: dms_CRCP_yP | J100: 11 | M100: =VALUE(LEFT(dms_CRYf_y10,4)+1)&"-"&TEXT(MID(dms_CRYf_y10,3,2)+2,"00") -> 2018-19 | N100: dms_CRYf_y11 | O100: =VALUE(LEFT(dms_CRYc_y10,4)+1) -> 2019 | P100: dms_CRYc_y11
B101: 12 | C101: dms_FRCP_y12 | D101: 12 | E101: CRCP_y12 | F101: =IF(dms_RPT="financial",VALUE(LEFT(dms_FRCP_y11,4)+1)&"-"&TEXT(VALUE(RIGHT(dms_FRCP_y11,2)+1),"00"),VALUE(LEFT(dms_FRCP_y11,4)+1)) -> 2030-31 | G101: dms_FRCP_y12 | H101: =IF(dms_RPT="financial",VALUE(LEFT(dms_CRCP_yP,4)-1)&"-"&TEXT(VALUE(MID(dms_CRCP_yP,3,2)),"00"),VALUE(LEFT(dms_CRCP_yP,4)-1)) -> 2007-08 | I101: dms_CRCP_yO | J101: 12 | M101: =VALUE(LEFT(dms_CRYf_y11,4)+1)&"-"&TEXT(MID(dms_CRYf_y11,3,2)+2,"00") -> 2019-20 | N101: dms_CRYf_y12 | O101: =VALUE(LEFT(dms_CRYc_y11,4)+1) -> 2020 | P101: dms_CRYc_y12
B102: 13 | C102: dms_FRCP_y13 | D102: 13 | E102: CRCP_y13 | F102: =IF(dms_RPT="financial",VALUE(LEFT(dms_FRCP_y12,4)+1)&"-"&TEXT(VALUE(RIGHT(dms_FRCP_y12,2)+1),"00"),VALUE(LEFT(dms_FRCP_y12,4)+1)) -> 2031-32 | G102: dms_FRCP_y13 | H102: =IF(dms_RPT="financial",VALUE(LEFT(dms_CRCP_yO,4)-1)&"-"&TEXT(VALUE(MID(dms_CRCP_yO,3,2)),"00"),VALUE(LEFT(dms_CRCP_yO,4)-1)) -> 2006-07 | I102: dms_CRCP_yN | J102: 13 | M102: =VALUE(LEFT(dms_CRYf_y12,4)+1)&"-"&TEXT(MID(dms_CRYf_y12,3,2)+2,"00") -> 2020-21 | N102: dms_CRYf_y13 | O102: =VALUE(LEFT(dms_CRYc_y12,4)+1) -> 2021 | P102: dms_CRYc_y13
B103: 14 | C103: dms_FRCP_y14 | D103: 14 | E103: CRCP_y14 | F103: =IF(dms_RPT="financial",VALUE(LEFT(dms_FRCP_y13,4)+1)&"-"&TEXT(VALUE(RIGHT(dms_FRCP_y13,2)+1),"00"),VALUE(LEFT(dms_FRCP_y13,4)+1)) -> 2032-33 | G103: dms_FRCP_y14 | H103: =IF(dms_RPT="financial",VALUE(LEFT(dms_CRCP_yN,4)-1)&"-"&TEXT(VALUE(MID(dms_CRCP_yN,3,2)),"00"),VALUE(LEFT(dms_CRCP_yN,4)-1)) -> 2005-06 | I103: dms_CRCP_yM | J103: 14 | M103: =VALUE(LEFT(dms_CRYf_y13,4)+1)&"-"&TEXT(MID(dms_CRYf_y13,3,2)+2,"00") -> 2021-22 | N103: dms_CRYf_y14 | O103: =VALUE(LEFT(dms_CRYc_y13,4)+1) -> 2022 | P103: dms_CRYc_y14
B104: 15 | C104: dms_FRCP_y15 | D104: 15 | E104: CRCP_y15 | F104: =IF(dms_RPT="financial",VALUE(LEFT(dms_FRCP_y14,4)+1)&"-"&TEXT(VALUE(RIGHT(dms_FRCP_y14,2)+1),"00"),VALUE(LEFT(dms_FRCP_y14,4)+1)) -> 2033-34 | G104: dms_FRCP_y15 | H104: =IF(dms_RPT="financial",VALUE(LEFT(dms_CRCP_yM,4)-1)&"-"&TEXT(VALUE(MID(dms_CRCP_yM,3,2)),"00"),VALUE(LEFT(dms_CRCP_yM,4)-1)) -> 2004-05 | I104: dms_CRCP_yL | J104: 15 | M104: =VALUE(LEFT(dms_CRYf_y14,4)+1)&"-"&TEXT(MID(dms_CRYf_y14,3,2)+2,"00") -> 2022-23 | N104: dms_CRYf_y15 | O104: =VALUE(LEFT(dms_CRYc_y14,4)+1) -> 2023 | P104: dms_CRYc_y15
M105: =VALUE(LEFT(dms_CRYf_y15,4)+1)&"-"&TEXT(MID(dms_CRYf_y15,3,2)+2,"00") -> 2023-24 | N105: dms_CRYf_y16 | O105: =VALUE(LEFT(dms_CRYc_y15,4)+1) -> 2024 | P105: dms_CRYc_y16
B106: These are drop down lists for businesses to select the correct FRCP_y1 on the business and other details worksheet. This also populates the column headings in the worksheets | M106: =VALUE(LEFT(dms_CRYf_y16,4)+1)&"-"&TEXT(MID(dms_CRYf_y16,3,2)+2,"00") -> 2024-25 | N106: dms_CRYf_y17 | O106: =VALUE(LEFT(dms_CRYc_y16,4)+1) -> 2025 | P106: dms_CRYc_y17
B107: dms_RCP_fyear_list | C107: dms_CRY_ListF | D107: dms_CRY_ListC | E107: dms_RCP_cyear_list | F107: dms_FRCP_fyear_list | G107: dms_FRCP_ListF | H107: dms_FRCP_ListC | I107: dms_FRCP_cyear_list | M107: =VALUE(LEFT(dms_CRYf_y17,4)+1)&"-"&TEXT(MID(dms_CRYf_y17,3,2)+2,"00") -> 2025-26 | N107: dms_CRYf_y18 | O107: =VALUE(LEFT(dms_CRYc_y17,4)+1) -> 2026 | P107: dms_CRYc_y18
B108: dms_fy1 | C108: 2005-06 | D108: 2006 | E108: dms_cy1 | F108: dms_frcp_fy1 | G108: 2016-17 | H108: 2017 | I108: dms_crcp_cy1 | M108: =VALUE(LEFT(dms_CRYf_y18,4)+1)&"-"&TEXT(MID(dms_CRYf_y18,3,2)+2,"00") -> 2026-27 | N108: dms_CRYf_y19 | O108: =VALUE(LEFT(dms_CRYc_y18,4)+1) -> 2027 | P108: dms_CRYc_y19
B109: dms_fy2 | C109: 2006-07 | D109: 2007 | E109: dms_cy2 | F109: dms_frcp_fy2 | G109: 2017-18 | H109: 2018 | I109: dms_crcp_cy2 | M109: =VALUE(LEFT(dms_CRYf_y19,4)+1)&"-"&TEXT(MID(dms_CRYf_y19,3,2)+2,"00") -> 2027-28 | N109: dms_CRYf_y20 | O109: =VALUE(LEFT(dms_CRYc_y19,4)+1) -> 2028 | P109: dms_CRYc_y20
B110: dms_fy3 | C110: 2007-08 | D110: 2008 | E110: dms_cy3 | F110: dms_frcp_fy3 | G110: 2018-19 | H110: 2019 | I110: dms_crcp_cy3
B111: dms_fy4 | C111: 2008-09 | D111: 2009 | E111: dms_cy4 | F111: dms_frcp_fy4 | G111: 2019-20 | H111: 2020 | I111: dms_crcp_cy4
B112: dms_fy5 | C112: 2009-10 | D112: 2010 | E112: dms_cy5 | F112: dms_frcp_fy5 | G112: 2020-21 | H112: 2021 | I112: dms_crcp_cy5
B113: dms_fy6 | C113: 2010-11 | D113: 2011 | E113: dms_cy6 | F113: dms_frcp_fy6 | G113: 2021-22 | H113: 2022 | I113: dms_crcp_cy6
B114: dms_fy7 | C114: 2011-12 | D114: 2012 | E114: dms_cy7 | F114: dms_frcp_fy7 | G114: 2022-23 | H114: 2023 | I114: dms_crcp_cy7
B115: dms_fy8 | C115: 2012-13 | D115: 2013 | E115: dms_cy8 | F115: dms_frcp_fy8 | G115: 2023-24 | H115: 2024 | I115: dms_crcp_cy8 | L115: 2005-06 | M115: 2006
B116: dms_fy9 | C116: 2013-14 | D116: 2014 | E116: dms_cy9 | F116: dms_frcp_fy9 | G116: 2024-25 | H116: 2025 | I116: dms_crcp_cy9 | L116: 2006-07 | M116: 2007
B117: dms_fy10 | C117: 2014-15 | D117: 2015 | E117: dms_cy10 | F117: dms_frcp_fy10 | G117: 2025-26 | H117: 2026 | I117: dms_crcp_cy10 | L117: 2007-08 | M117: 2008
B118: dms_fy11 | C118: 2015-16 | D118: 2016 | E118: dms_cy11 | F118: dms_frcp_fy11 | G118: 2026-27 | H118: 2027 | I118: dms_crcp_cy11 | L118: 2008-09 | M118: 2009
B119: dms_fy12 | C119: 2016-17 | D119: 2017 | E119: dms_cy12 | F119: dms_frcp_fy12 | G119: 2027-28 | H119: 2028 | I119: dms_crcp_cy12 | L119: 2009-10 | M119: 2010
B120: dms_fy13 | C120: 2017-18 | D120: 2018 | E120: dms_cy13 | F120: dms_frcp_fy13 | G120: 2028-29 | H120: 2029 | I120: dms_crcp_cy13 | L120: 2010-11 | M120: 2011
B121: dms_fy14 | C121: 2018-19 | D121: 2019 | E121: dms_cy14 | F121: dms_frcp_fy14 | G121: 2029-30 | H121: 2030 | I121: dms_crcp_cy14 | L121: 2011-12 | M121: 2012
B122: dms_fy15 | C122: 2019-20 | D122: 2020 | E122: dms_cy15 | F122: dms_frcp_fy15 | G122: 2030-31 | H122: 2031 | I122: dms_crcp_cy15 | L122: 2012-13 | M122: 2013
B123: dms_fy16 | C123: 2019-20 | D123: 2020 | E123: dms_cy16 | L123: 2013-14 | M123: 2014
B124: dms_fy17 | C124: 2020-21 | D124: 2021 | E124: dms_cy17 | L124: 2014-15 | M124: 2015
B125: dms_fy18 | C125: 2021-22 | D125: 2022 | E125: dms_cy18 | L125: 2015-16 | M125: 2016
B126: dms_fy19 | C126: 2022-23 | D126: 2023 | E126: dms_cy19 | L126: 2016-17 | M126: 2017
B127: dms_fy20 | C127: 2023-24 | D127: 2024 | E127: dms_cy20 | L127: 2017-18 | M127: 2018
L128: 2018-19 | M128: 2019
L129: 2019-20 | M129: 2020
L130: 2020-21 | M130: 2021
L131: 2021-22 | M131: 2022
L132: 2022-23 | M132: 2023
L133: 2023-24 | M133: 2024
L134: 2024-25 | M134: 2025
L135: 2025-26 | M135: 2026
L136: 2026-27 | M136: 2027
L137: 2027-28 | M137: 2028
L138: 2028-29 | M138: 2029
L139: 2029-30 | M139: 2030
L140: 2030-31 | M140: 2031
L141: 2031-32 | M141: 2032
L142: 2032-33 | M142: 2033
L143: 2033-34 | M143: 2034
L144: 2034-35 | M144: 2035
L145: 2035-36 | M145: 2036

Sheet Contents
B1: REGULATORY REPORTING STATEMENT
B2: =INDEX(dms_TradingNameFull_List,MATCH(dms_TradingName,dms_TradingName_List)) -> Endeavour Energy
B3: NEW HISTORICAL DATA 2008-09 to 2016-17
B4: CONTENTS
E7: 1. Business details | L7: 2. Expenditure

Sheet Instructions
B2: =CONCATENATE(dms_Segment," Network Service Provider") -> Distribution Network Service Provider
B3: Historical Reporting RIN Template
C4: =CONCATENATE("This template is to be used by ",dms_TradingName," to fulfil its reporting obligations to the AER.") -> This template is to be used by Endeavour Energy to fulfil its reporting obligations to the AER.
C5: INSTRUCTIONS
C6: Complete the Business & other details worksheet before entering data or values in any other worksheets. The Business & other details worksheet is linked to other worksheets within the workbook and automatically generates certain column headings and conditional formatting.
C8: Identifying CONFIDENTIAL INFORMATION: Please use the macro at the top of each worksheet to identify confidential information.
C9: -Do this by selecting the cell or cells that contain confidential information and then run the Mark selection CONFIDENTIAL macro. This will format the cells a specific colour that is identified by the AER's database which in turn marks that information as confidential. -To reverse this, select the cell or cells and run the Return selection to NON-CONFIDENTIAL macro.
C11: UNITS OF MEASURE All amounts are to be unrounded and reported on a one for one basis: that is 1000 is to be entered as '1000'. Applicable units of measure may be identified in the table column headings or row descriptors.
C13: COLOUR CODING OF INPUT / NON-INPUT CELLS:
D14: Yellow = Input cell (mandatory)
D15: Darker yellow = input cell (mandatory)
D16: Orange = input cell (if data available)
D17: Grey = Not applicable/No inputs required
D18: PLEASE DO NOT ENTER TEXT into cells that are to contain numeric data.
C21: WORKSHEET NAVIGATION Many tables in the worksheets have been "grouped" to allow for easy navigation. To ungroup or group data use the outline symbols in the left margin of excel (for Row groupings) or above the columns (for column groupings).
C23: RETURNING COMPLETED RESPONSES Please return two (2) files to the AER: 1. A confidential version which must contain a complete set of all responses with confidential information marked using the Mark selected cells CONFIDENTIAL macro and which has been completed using the locked template file provided by the AER. 2. A public version with confidential information either removed completely or aggregated in some form together with writtten consent to disclose the public version of the response. Use the drop down box on the Business and other details worksheet to identify the file as either confidential ('consolidated') or public.
C25: SUBMITTING AMENDED DATA TO THE AER If an NSP wishes to correct data previously submitted to the AER it should resubmit that data using the original completed submission as the starting point. Please make any necessary changes to the data. Data that is not being amended should be left unchanged. NSPs must identify the reason for the amendments in the Amendment Reason box on the Business and other details worksheet. NSPs may provide further details regarding any amendments in the Amendments worksheet. .
C26: NSP may use Amended Data macro to highlight cells that contain amended data. NB: if data is also CONFIDENTIAL, re-apply the Confidentiality macro after applying the Amended macro
C27: Please resubmit two (2) files - a confidential version and a public version of the amended submission to the AER

Sheet Business & other details
B1: REGULATORY REPORTING STATEMENT
B2: =INDEX(dms_TradingNameFull_List,MATCH(dms_TradingName,dms_TradingName_List)) -> Endeavour Energy
B3: NEW HISTORICAL DATA 2008-09 to 2016-17
B4: BUSINESS & OTHER DETAILS
B7: Instructions
B8: Complete the following business details regulatory template before entering data or values in any other regulatory template. This regulatory template is linked to other cells within the spreadsheet and automatically generates column headings.
B10: SUBMISSION PARTICULARS INPUT SHEETS
B12: ENTITY DETAILS
B14: Short name | C14: Endeavour Energy
B15: ACN / ABN | C15: =INDEX(dms_ABN_List,MATCH(dms_TradingName,dms_TradingName_List)) -> 11247365823
B18: Business address | C18: Address 1 | E18: =INDEX(dms_Addr1_List,MATCH(dms_TradingName,dms_TradingName_List)) -> 51 Huntingwood Drive
D19: Address 2 | E19: =IF(ISBLANK(INDEX(dms_Addr2_List,MATCH(dms_TradingName,dms_TradingName_List))),"",INDEX(dms_Addr2_List,MATCH(dms_TradingName,dms_TradingName_List))) -> 
C20: Suburb | E20: =INDEX(dms_Suburb_List,MATCH(dms_TradingName,dms_TradingName_List)) -> HUNTINGWOOD
D21: State | E21: =INDEX(dms_State_List,MATCH(dms_TradingName,dms_TradingName_List)) -> NSW | F21: p/code | G21: =INDEX(dms_PostCode_List,MATCH(dms_TradingName,dms_TradingName_List)) -> 2148
B23: Postal address | C23: Address 1 | E23: =INDEX(dms_PAddr1_List,MATCH(dms_TradingName,dms_TradingName_List)) -> PO Box 811
D24: Address 2 | E24: =IF(ISBLANK(INDEX(dms_PAddr2_List,MATCH(dms_TradingName,dms_TradingName_List))),"",INDEX(dms_PAddr2_List,MATCH(dms_TradingName,dms_TradingName_List))) -> 
C25: Suburb | E25: =INDEX(dms_PSuburb_List,MATCH(dms_TradingName,dms_TradingName_List)) -> SEVEN HILLS
D26: State | E26: =INDEX(dms_PState_List,MATCH(dms_TradingName,dms_TradingName_List)) -> NSW | F26: p/code | G26: =INDEX(dms_PPostCode_List,MATCH(dms_TradingName,dms_TradingName_List)) -> 1730
B29: Contact name/s | C29: =INDEX(dms_ContactName1_List,MATCH(dms_TradingName,dms_TradingName_List)) -> Jon Hocking
B30: Contact phone/s | C30: =INDEX(dms_ContactPh1_List,MATCH(dms_TradingName,dms_TradingName_List)) -> 02 9853 4386 / 0407 348 156
B31: Contact email address/s | C31: =INDEX(dms_ContactEmail_List,MATCH(dms_TradingName,dms_TradingName_List)) -> Jon.Hocking@Endeavourenergy.com.au
B33: REGULATORY CONTROL PERIODS
B35: Forthcoming regulatory control period | C35: 2019-20 | D35: =dms_FRCP_y2 -> 2020-21 | E35: =dms_FRCP_y3 -> 2021-22 | F35: =dms_FRCP_y4 -> 2022-23 | G35: =dms_FRCP_y5 -> 2023-24 | H35: =dms_FRCP_y6 -> 2024-25 | I35: =dms_FRCP_y7 -> 2025-26 | J35: =dms_FRCP_y8 -> 2026-27 | K35: =dms_FRCP_y9 -> 2027-28 | L35: =dms_FRCP_y10 -> 2028-29
B38: Current regulatory control period | C38: 2008-09 | D38: =IF(dms_RPT="financial",VALUE(LEFT(CRCP_y1,4)+1)&"-"&TEXT(MID(CRCP_y1,3,2)+2,"00"),VALUE(LEFT(CRCP_y1,4)+1)) -> 2009-10 | E38: =IF(dms_RPT="financial",VALUE(LEFT(CRCP_y2,4)+1)&"-"&TEXT(VALUE(MID(CRCP_y2,3,2)+2),"00"),VALUE(LEFT(CRCP_y2,4)+1)) -> 2010-11 | F38: =IF(dms_RPT="financial",VALUE(LEFT(CRCP_y3,4)+1)&"-"&TEXT(VALUE(MID(CRCP_y3,3,2)+2),"00"),VALUE(LEFT(CRCP_y3,4)+1)) -> 2011-12 | G38: =IF(dms_RPT="financial",VALUE(LEFT(CRCP_y4,4)+1)&"-"&TEXT(VALUE(MID(CRCP_y4,3,2)+2),"00"),VALUE(LEFT(CRCP_y4,4)+1)) -> 2012-13 | H38: =IF(dms_RPT="financial",VALUE(LEFT(CRCP_y5,4)+1)&"-"&TEXT(VALUE(MID(CRCP_y5,3,2)+2),"00"),VALUE(LEFT(CRCP_y5,4)+1)) -> 2013-14 | I38: =IF(dms_RPT="financial",VALUE(LEFT(CRCP_y6,4)+1)&"-"&TEXT(VALUE(MID(CRCP_y6,3,2)+2),"00"),VALUE(LEFT(CRCP_y6,4)+1)) -> 2014-15 | J38: =IF(dms_RPT="financial",VALUE(LEFT(CRCP_y7,4)+1)&"-"&TEXT(VALUE(MID(CRCP_y7,3,2)+2),"00"),VALUE(LEFT(CRCP_y7,4)+1)) -> 2015-16 | K38: =IF(dms_RPT="financial",VALUE(LEFT(CRCP_y8,4)+1)&"-"&TEXT(VALUE(MID(CRCP_y8,3,2)+2),"00"),VALUE(LEFT(CRCP_y8,4)+1)) -> 2016-17 | L38: =IF(dms_RPT="financial",VALUE(LEFT(CRCP_y9,4)+1)&"-"&TEXT(VALUE(MID(CRCP_y9,3,2)+2),"00"),VALUE(LEFT(CRCP_y9,4)+1)) -> 2017-18
B41: Previous regulatory control period | C41: =IF(dms_RPT="financial",VALUE(LEFT(PRCP_y2,4)-1)&"-"&TEXT(VALUE(MID(PRCP_y2,3,2)),"00"),VALUE(LEFT(PRCP_y2,4)-1)) -> 2003-04 | D41: =IF(dms_RPT="financial",VALUE(LEFT(PRCP_y3,4)-1)&"-"&TEXT(VALUE(MID(PRCP_y3,3,2)),"00"),VALUE(LEFT(PRCP_y3,4)-1)) -> 2004-05 | E41: =IF(dms_RPT="financial",VALUE(LEFT(PRCP_y4,4)-1)&"-"&TEXT(VALUE(MID(PRCP_y4,3,2)),"00"),VALUE(LEFT(PRCP_y4,4)-1)) -> 2005-06 | F41: =IF(dms_RPT="financial",VALUE(LEFT(PRCP_y5,4)-1)&"-"&TEXT(VALUE(RIGHT(PRCP_y5,2)-1),"00"),VALUE(LEFT(PRCP_y5,4)-1)) -> 2006-07 | G41: =IF(dms_RPT="financial",VALUE(LEFT(CRCP_y1,4)-1)&"-"&TEXT(VALUE(RIGHT(CRCP_y1,2)-1),"00"),VALUE(LEFT(CRCP_y1,4)-1)) -> 2007-08
B44: Commencing regulatory year | C44: 2008-09 | D44: CRY
B46: Last completed regulatory year | C46: 2016-17 | D46: dms_FinalYear
C48: DELETE NR 'CRY' IF NOT AN ANNUAL RIN (EB, CA , ARR)
C49: APPLY NR 'CRY' IF AN ANNUAL RIN (EB, CA , ARR) - including multi year annual RINs eg. Recast CA. EB
B51: Source | C51: Reporting | E51: Please select the correct submission type from the dropdown list.
B52: Data quality (actual, estimate, public, consolidated) | C52: Consolidated
B53: Amended RIN submission - amendment reason
B54: Submission Date | C54: 2018-04-30 | D54: dms_SubmissionDate | E54: Please enter date this file submitted to AER (dd/mm/yyyy)
B55: EBSS - First application of scheme in forthcoming period? | C55: Yes
B56: Sector | C56: =INDEX(dms_Sector_List,MATCH(dms_TradingName,dms_TradingName_List)) -> Electricity | D56: dms_Sector | E56: =INDEX(dms_Sector_List,MATCH(dms_TradingName,dms_TradingName_List))
B57: Segment | C57: =INDEX(dms_Segment_List,MATCH(dms_TradingName,dms_TradingName_List)) -> Distribution | D57: dms_Segment | E57: =INDEX(dms_Segment_List,MATCH(dms_TradingName,dms_TradingName_List))
B58: Regulatory Year Ending | C58: =IF(dms_MultiYear_Flag=1,LEFT(dms_Specified_FinalYear,2)&RIGHT(dms_Specified_FinalYear,2),INDEX(dms_RYE_Formula_Result,MATCH(dms_Model,dms_Model_List))) -> 2017 | D58: dms_RYE | E58: =IF(dms_MultiYear_Flag=1,LEFT(dms_Specified_FinalYear,2)&RIGHT(dms_Specified_FinalYear,2),INDEX(dms_RYE_Formula_Result,MATCH(dms_Model,dms_Model_List)))
B59: Reporting Period Type | C59: =INDEX(dms_RPT_List,MATCH(dms_TradingName,dms_TradingName_List)) -> Financial | D59: dms_RPT | E59: =INDEX(dms_RPT_List,MATCH(dms_TradingName,dms_TradingName_List))
B60: Model or RIN Type | C60: CA | D60: dms_Model | E60: Drop down selection
B61: Security Classification | C61: Public | D61: dms_Classification | E61: Always Public
B62: Template - version no. | C62: 5 | D62: dms_TemplateNumber
B63: Dollar $ real month | C63: =INDEX(dms_RPTMonth_List,MATCH(dms_TradingName,dms_TradingName_List)) -> June | D63: dms_RPTMonth | E63: =INDEX(dms_RPTMonth_List,MATCH(dms_TradingName,dms_TradingName_List))
B64: Dollar $ real (the last month before the FRCP_y1) | C64: =CONCATENATE(dms_RPTMonth)&" "&VALUE((LEFT(dms_CRCP_FinalYear_Result,2)&RIGHT(dms_CRCP_FinalYear_Result,2))) -> June 2017 | D64: dms_DollarReal | E64: =IF(SUM(dms_SingleYear_Model)>0,CONCATENATE(dms_RPTMonth)&" "&VALUE((LEFT(CRY,2))&RIGHT(CRY,2)),CONCATENATE(dms_RPTMonth)&" "&VALUE((LEFT(dms_CRCP_FinalYear_Result,2)&RIGHT(dms_CRCP_FinalYear_Result,2))))
B65: Form of control | C65: =INDEX(dms_FormControl_List,MATCH(dms_TradingName,dms_TradingName_List)) -> Revenue cap | D65: dms_FormControl | E65: =INDEX(dms_FormControl_List,MATCH(dms_TradingName,dms_TradingName_List))
B66: RIN response - version no. | C66: 1 | D66: dms_RINversion
B67: Jurisdiction | C67: =INDEX(dms_JurisdictionList,MATCH(dms_TradingName,dms_TradingName_List)) -> NSW | D67: dms_Jurisdiction | E67: =INDEX(dms_JurisdictionList,MATCH(dms_TradingName,dms_TradingName_List))
B68: Backcast Multiyear EB, CA or ARR? | C68: 1 | D68: dms_MultiYear_Flag | E68: 1=y, 0-n
C69: =FRY -> 2016-17 | D69: dms_Specified_FinalYear | E69: The result here is returned to dms_CRCP_FinalYear_Result if dms_MultiYear_Flag is set to 1
B70: Single Year Model T/F | C70: =IF(dms_Model="EB",1,0) -> 0 | D70: dms_EB
C71: 0 | D71: dms_CA | E71: =dms_SingleYear_Model
C72: =IF(dms_Model="ARR",1,0) -> 0 | D72: dms_ARR
B73: Single Year Final Year Reference | C73: CRY | D73: dms_SingleYear_FinalYear_Ref | E73: This is the reference for EB, CA & ARR RINs
B74: Single Year Final Year Result | C74: =INDIRECT(dms_SingleYear_FinalYear_Ref) -> 2008-09 | D74: dms_SingleYear_FinalYear_Result | E74: =INDIRECT(dms_SingleYear_FinalYear_Ref) | I74: Formula errors OK
B75: FRCP length in years | C75: =INDEX(dms_FRCPlength_List,MATCH(dms_TradingName,dms_TradingName_List)) -> 5 | D75: dms_FRCPlength_Num | E75: =INDEX(dms_FRCPlength_List,MATCH(dms_TradingName,dms_TradingName_List))
B76: Multi Year Final Year Reference | C76: =INDEX(dms_FinalYear_List,MATCH(dms_FRCPlength_Num,dms_FRCPlength_Num_List)) -> dms_FRCP_y5 | D76: dms_MultiYear_FinalYear_Ref | E76: =INDEX(dms_FinalYear_List,MATCH(dms_FRCPlength_Num,dms_FRCPlength_Num_List))
B77: Multi Year Final Year Result | C77: =IF(dms_MultiYear_Flag=0,INDIRECT(dms_MultiYear_FinalYear_Ref),dms_Specified_FinalYear) -> 2016-17 | D77: dms_MultiYear_FinalYear_Result | E77: =IF(dms_MultiYear_Flag=0,INDIRECT(dms_MultiYear_FinalYear_Ref),dms_Specified_FinalYear) | I77: Formula errors OK
B78: CRCP length in years | C78: =INDEX(dms_CRCPlength_List,MATCH(dms_TradingName,dms_TradingName_List)) -> 5 | D78: dms_CRCPlength_Num | E78: =INDEX(dms_CRCPlength_List,MATCH(dms_TradingName,dms_TradingName_List))
B79: CRCP Final Year Reference | C79: =INDEX(dms_CFinalYear_List,MATCH(dms_CRCPlength_Num,dms_CRCPlength_Num_List)) -> CRCP_y5 | D79: dms_CRCP_FinalYear_Ref | E79: =INDEX(dms_CFinalYear_List,MATCH(dms_CRCPlength_Num,dms_CRCPlength_Num_List))
B80: CRCP First Year Result | C80: =INDEX(dms_CRCP_years,MATCH(dms_CRCPlength_Num,dms_CRCP_index)) -> 2014-15 | D80: dms_CRCP_FirstYear_Result | E80: =INDEX(dms_CRCP_years,MATCH(dms_CRCPlength_Num,dms_CRCP_index))
B81: CRCP Final Year Result | C81: =IF(dms_MultiYear_Flag=0,(IF(SUM(dms_SingleYear_Model)>0,CRY,dms_CRCP_yZ)),dms_Specified_FinalYear) -> 2016-17 | D81: dms_CRCP_FinalYear_Result | E81: =IF(dms_MultiYear_Flag=0,(IF(SUM(dms_SingleYear_Model)>0,CRY,dms_CRCP_yZ)),dms_Specified_FinalYear)
B82: Table 6.6.3 - Public lighting repair - no. business days | C82: =INDEX(dms_663_List,MATCH(dms_TradingName,dms_TradingName_List)) -> 5 | D82: dms_663
B83: Distribution Determination Reference | C83: =INDEX(dms_DeterminationRef_List,MATCH(dms_TradingName,dms_TradingName_List)) -> 2014-19 Distribution Determination
B84: Backcast templates only - unit of measure | C84: $0s | D84: dms_Backcast_UOM | E84: If the cover sheet is for Backcast data ensure to apply dms_Backcast_UOM named range to this field. Otherwise, do not apply this named range.
B85: EB/CA Unit of Measure for Monetary Values | C85: $0s | D85: dms_dollar_nom_UOM | E85: If the cover sheet is attached to an EB files make sure this field is set
B87: discard this record? | C87: NO | D87: dms_DISCARD | E87: If record is to be discarded from DB set this flag to YES
B89: USES NAMED RANGES FLAG | C89: yes | D89: dms_Defined_Names_Used

Sheet 2.5 Connections
B1: REGULATORY REPORTING STATEMENT
B2: =INDEX(dms_TradingNameFull_List,MATCH(dms_TradingName,dms_TradingName_List)) -> Endeavour Energy
B3: NEW HISTORICAL DATA 2008-09 to 2016-17
B4: 2.5 CONNECTIONS
B6: There are THREE tables on this worksheet - each has been 'grouped' (and sub-grouped) for easy navigation. See the Instructions sheet on how to group or ungroup tables.
B10: 2.5.2 - COST METRICS BY CONNECTION CLASSIFICATION
B12: EXPENDITURE - STANDARD CONTROL SERVICES
E13: EXPENDITURE ($0's)
E14: =IF(dms_RPT="financial",dms_fy4,dms_cy4) -> 2008-09 | F14: =IF(dms_RPT="financial",dms_fy5,dms_cy5) -> 2009-10 | G14: =IF(dms_RPT="financial",dms_fy6,dms_cy6) -> 2010-11 | H14: =IF(dms_RPT="financial",dms_fy7,dms_cy7) -> 2011-12 | I14: =IF(dms_RPT="financial",dms_fy8,dms_cy8) -> 2012-13 | J14: =IF(dms_RPT="financial",dms_fy9,dms_cy9) -> 2013-14 | K14: =IF(dms_RPT="financial",dms_fy10,dms_cy10) -> 2014-15 | L14: =IF(dms_RPT="financial",dms_fy11,dms_cy11) -> 2015-16 | M14: =IF(dms_RPT="financial",dms_fy12,dms_cy12) -> 2016-17
B15: RESIDENTIAL | C15: Simple connection LV | E15: 3436000 | F15: 2695000 | G15: 3083000 | H15: 1986000 | I15: 1428000 | J15: 1520357 | K15: 2067383 | L15: 2369467 | M15: 2709225
C16: Complex connection LV | E16: 0 | F16: 0 | G16: 0 | H16: 0 | I16: 0 | J16: 0 | K16: 0 | L16: 0 | M16: 0
C17: Complex connection HV | E17: 0 | F17: 0 | G17: 0 | H17: 0 | I17: 0 | J17: 0 | K17: 0 | L17: 0 | M17: 0
B18: COMMERCIAL/INDUSTRIAL | C18: Simple connection LV | E18: 0 | F18: 0 | G18: 0 | H18: 0 | I18: 0 | J18: 0 | K18: 0 | L18: 0 | M18: 0
C19: Complex connection HV (customer connected at LV, minor HV works) | E19: 12808000 | F19: 10719000 | G19: 10131000 | H19: 9218000 | I19: 5553000 | J19: 5120910 | K19: 4459476 | L19: 637272 | M19: 3664958
C20: Complex connection HV (customer connected at LV, upstream asset works) | E20: 0 | F20: 0 | G20: 0 | H20: 0 | I20: 0 | J20: 0 | K20: 0 | L20: 0 | M20: 0
C21: Complex connection HV (customer connected at HV) | E21: 0 | F21: 0 | G21: 0 | H21: 0 | I21: 0 | J21: 0 | K21: 0 | L21: 0 | M21: 0
C22: Complex connection sub-transmission | E22: 0 | F22: 0 | G22: 0 | H22: 0 | I22: 0 | J22: 0 | K22: 0 | L22: 0 | M22: 0
B23: SUBDIVISION | C23: Complex connection LV | E23: 0 | F23: 0 | G23: 0 | H23: 0 | I23: 0 | J23: 0 | K23: 0 | L23: 0 | M23: 0
C24: Complex connection HV (no upstream asset works) | E24: 0 | F24: 0 | G24: 0 | H24: 0 | I24: 0 | J24: 0 | K24: 0 | L24: 0 | M24: 0
C25: Complex connection HV (with upstream asset works) | E25: 3196000 | F25: 2677000 | G25: 4001000 | H25: 4204000 | I25: 4942000 | J25: 4581973 | K25: 5830899 | L25: 6067610 | M25: 6895649
B26: EMBEDDED GENERATION | C26: Simple connection LV | E26: 0 | F26: 0 | G26: 0 | H26: 0 | I26: 0 | J26: 0 | K26: 0 | L26: 0 | M26: 0
C27: Complex connection HV (small capacity) | E27: 0 | F27: 0 | G27: 0 | H27: 0 | I27: 0 | J27: 0 | K27: 0 | L27: 0 | M27: 0
C28: Complex connection HV (large capacity) | E28: 0 | F28: 0 | G28: 0 | H28: 0 | I28: 0 | J28: 0 | K28: 0 | L28: 0 | M28: 0
B30: EXPENDITURE - STANDARD CONTROL SERVICES - CAPITAL CONTRIBUTIONS
E31: EXPENDITURE ($0's)
E32: =IF(dms_RPT="financial",dms_fy4,dms_cy4) -> 2008-09 | F32: =IF(dms_RPT="financial",dms_fy5,dms_cy5) -> 2009-10 | G32: =IF(dms_RPT="financial",dms_fy6,dms_cy6) -> 2010-11 | H32: =IF(dms_RPT="financial",dms_fy7,dms_cy7) -> 2011-12 | I32: =IF(dms_RPT="financial",dms_fy8,dms_cy8) -> 2012-13 | J32: =IF(dms_RPT="financial",dms_fy9,dms_cy9) -> 2013-14 | K32: =IF(dms_RPT="financial",dms_fy10,dms_cy10) -> 2014-15 | L32: =IF(dms_RPT="financial",dms_fy11,dms_cy11) -> 2015-16 | M32: =IF(dms_RPT="financial",dms_fy12,dms_cy12) -> 2016-17
B33: RESIDENTIAL | C33: Simple connection LV | E33: 2891644 | F33: 2919280 | G33: 4956129 | H33: 3854689 | I33: 3484490 | J33: 6047123 | K33: 4665653 | L33: 8736172 | M33: 8513695
C34: Complex connection LV | E34: 0 | F34: 0 | G34: 0 | H34: 0 | I34: 0 | J34: 0 | K34: 0 | L34: 0 | M34: 0
C35: Complex connection HV | E35: 0 | F35: 0 | G35: 0 | H35: 0 | I35: 0 | J35: 0 | K35: 0 | L35: 0 | M35: 0
B36: COMMERCIAL/INDUSTRIAL | C36: Simple connection LV | E36: 0 | F36: 0 | G36: 0 | H36: 0 | I36: 0 | J36: 0 | K36: 0 | L36: 0 | M36: 0
C37: Complex connection HV (customer connected at LV, minor HV works) | E37: 14944261 | F37: 13288257 | G37: 9882848 | H37: 13623794 | I37: 8940299 | J37: 14254371 | K37: 18972308 | L37: 12051983 | M37: 30416839
C38: Complex connection HV (customer connected at LV, upstream asset works) | E38: 0 | F38: 0 | G38: 0 | H38: 0 | I38: 0 | J38: 0 | K38: 0 | L38: 0 | M38: 0
C39: Complex connection HV (customer connected at HV) | E39: 28755289 | F39: 16100988 | G39: 13661223 | H39: 16358915 | I39: 12762599 | J39: 16675905 | K39: 34972323 | L39: 11746454 | M39: 35159439
C40: Complex connection sub-transmission | E40: 0 | F40: 0 | G40: 0 | H40: 0 | I40: 0 | J40: 0 | K40: 0 | L40: 0 | M40: 0
B41: SUBDIVISION | C41: Complex connection LV | E41: 0 | F41: 0 | G41: 0 | H41: 0 | I41: 0 | J41: 0 | K41: 0 | L41: 0 | M41: 0
C42: Complex connection HV (no upstream asset works) | E42: 0 | F42: 0 | G42: 0 | H42: 0 | I42: 0 | J42: 0 | K42: 0 | L42: 0 | M42: 0
C43: Complex connection HV (with upstream asset works) | E43: 9440806 | F43: 11818475 | G43: 22298102 | H43: 28541067 | I43: 42031586 | J43: 47150872 | K43: 53310755 | L43: 91230612 | M43: 90046494
B44: EMBEDDED GENERATION | C44: Simple connection LV | E44: 0 | F44: 0 | G44: 0 | H44: 0 | I44: 0 | J44: 0 | K44: 0 | L44: 0 | M44: 0
C45: Complex connection HV (small capacity) | E45: 0 | F45: 0 | G45: 0 | H45: 0 | I45: 0 | J45: 0 | K45: 0 | L45: 0 | M45: 0
C46: Complex connection HV (large capacity) | E46: 0 | F46: 0 | G46: 0 | H46: 0 | I46: 0 | J46: 0 | K46: 0 | L46: 0 | M46: 0
B49: 2.5.3 - VOLUMES BY CONNECTION CLASSIFICATION
B51: NEW CONNECTIONS - STANDARD CONTROL SERVICES
E52: VOLUMES (0's)
E53: =IF(dms_RPT="financial",dms_fy4,dms_cy4) -> 2008-09 | F53: =IF(dms_RPT="financial",dms_fy5,dms_cy5) -> 2009-10 | G53: =IF(dms_RPT="financial",dms_fy6,dms_cy6) -> 2010-11 | H53: =IF(dms_RPT="financial",dms_fy7,dms_cy7) -> 2011-12 | I53: =IF(dms_RPT="financial",dms_fy8,dms_cy8) -> 2012-13 | J53: =IF(dms_RPT="financial",dms_fy9,dms_cy9) -> 2013-14 | K53: =IF(dms_RPT="financial",dms_fy10,dms_cy10) -> 2014-15 | L53: =IF(dms_RPT="financial",dms_fy11,dms_cy11) -> 2015-16 | M53: =IF(dms_RPT="financial",dms_fy12,dms_cy12) -> 2016-17
B54: RESIDENTIAL | C54: Simple connection LV | E54: 1884 | F54: 1861 | G54: 3056 | H54: 1928 | I54: 2434 | J54: 4260 | K54: 3080 | L54: 5937 | M54: 9122
C55: Complex connection LV | E55: 0 | F55: 0 | G55: 0 | H55: 0 | I55: 0 | J55: 0 | K55: 0 | L55: 0 | M55: 0
C56: Complex connection HV | E56: 0 | F56: 0 | G56: 0 | H56: 0 | I56: 0 | J56: 0 | K56: 0 | L56: 0 | M56: 0
B57: COMMERCIAL/INDUSTRIAL | C57: Simple connection LV | E57: 0 | F57: 0 | G57: 0 | H57: 0 | I57: 0 | J57: 0 | K57: 0 | L57: 0 | M57: 0
C58: Complex connection HV (customer connected at LV, minor HV works) | E58: 267 | F58: 951 | G58: 685 | H58: 420 | I58: 2144 | J58: 336 | K58: 418 | L58: 354 | M58: 1237
C59: Complex connection HV (customer connected at LV, upstream asset works) | E59: 0 | F59: 0 | G59: 0 | H59: 0 | I59: 0 | J59: 0 | K59: 0 | L59: 0 | M59: 0
C60: Complex connection HV (customer connected at HV) | E60: 0 | F60: 0 | G60: 0 | H60: 0 | I60: 0 | J60: 0 | K60: 0 | L60: 0 | M60: 0
C61: Complex connection sub-transmission | E61: 0 | F61: 0 | G61: 0 | H61: 0 | I61: 0 | J61: 0 | K61: 0 | L61: 0 | M61: 0
B62: SUBDIVISION | C62: Complex connection LV | E62: 0 | F62: 0 | G62: 0 | H62: 0 | I62: 0 | J62: 0 | K62: 0 | L62: 0 | M62: 0
C63: Complex connection HV (no upstream asset works) | E63: 0 | F63: 0 | G63: 0 | H63: 0 | I63: 0 | J63: 0 | K63: 0 | L63: 0 | M63: 0
C64: Complex connection HV (with upstream asset works) | E64: 4252 | F64: 4200 | G64: 6898 | H64: 4351 | I64: 5493 | J64: 9613 | K64: 9464 | L64: 12673 | M64: 12091
B65: EMBEDDED GENERATION | C65: Simple connection LV | E65: 294 | F65: 5404 | G65: 31214 | H65: 14861 | I65: 8750 | J65: 4116 | K65: 5075 | L65: 3124 | M65: 1885
C66: Complex connection HV (small capacity) | E66: 0 | F66: 0 | G66: 0 | H66: 0 | I66: 0 | J66: 0 | K66: 0 | L66: 0 | M66: 0
C67: Complex connection HV (large capacity) | E67: 0 | F67: 0 | G67: 0 | H67: 0 | I67: 0 | J67: 0 | K67: 0 | L67: 0 | M67: 0

Sheet 2.6 Non-network
B1: REGULATORY REPORTING STATEMENT
B2: =INDEX(dms_TradingNameFull_List,MATCH(dms_TradingName,dms_TradingName_List)) -> Endeavour Energy
B3: NEW HISTORICAL DATA 2008-09 to 2016-17
B4: 2.6 NON NETWORK EXPENDITURE
B6: There are THREE tables on this worksheet - each has been 'grouped' (and sub-grouped) for easy navigation. See the Instructions sheet on how to group or ungroup tables.
B10: 2.6.4 - INFORMATION & COMMUNICATIONS TECHNOLOGY - CAPEX BY PURPOSE
F11: EXPENDITURE ($0's)
F12: =IF(dms_RPT="financial",dms_fy4,dms_cy4) -> 2008-09 | G12: =IF(dms_RPT="financial",dms_fy5,dms_cy5) -> 2009-10 | H12: =IF(dms_RPT="financial",dms_fy6,dms_cy6) -> 2010-11 | I12: =IF(dms_RPT="financial",dms_fy7,dms_cy7) -> 2011-12 | J12: =IF(dms_RPT="financial",dms_fy8,dms_cy8) -> 2012-13 | K12: =IF(dms_RPT="financial",dms_fy9,dms_cy9) -> 2013-14 | L12: =IF(dms_RPT="financial",dms_fy10,dms_cy10) -> 2014-15 | M12: =IF(dms_RPT="financial",dms_fy11,dms_cy11) -> 2015-16 | N12: =IF(dms_RPT="financial",dms_fy12,dms_cy12) -> 2016-17
B13: ICT CAPABILITY GROWTH
B14: ICT CAPABILITY GROWTH | F14: 6075573 | G14: 2570807 | H14: 3344735 | I14: 5092464 | J14: 3170048 | K14: 3339129 | L14: 3282893 | M14: 3029110 | N14: 3574685
B20: ICT ASSET EXTENSIONS
B21: ICT ASSET EXTENSIONS | F21: 2782391 | G21: 3744683 | H21: 6397166 | I21: 2039450 | J21: 2224801 | K21: 1892858 | L21: 1679819 | M21: 2103879 | N21: 1843909
B27: ICT ASSET REMEDITATION
B28: ICT ASSET REMEDITATION | F28: 477078 | G28: 117855 | H28: 85318 | I28: 434703 | J28: 683891 | K28: 911800 | L28: 78989 | M28: 467088 | N28: 493577
B34: ICT ASSET REPLACEMENT
B35: ICT ASSET REPLACEMENT | F35: 6105957 | G35: 4409655 | H35: 17807016 | I35: 7013392 | J35: 6856445 | K35: 7705867 | L35: 6591962 | M35: 4118342 | N35: 2516434

Sheet 2.10 Network overheads
B1: REGULATORY REPORTING STATEMENT
B2: =dms_TradingName -> Endeavour Energy
B3: NEW HISTORICAL DATA 2008-09 to 2016-17
B4: 2.10 OVERHEADS
B6: There are TWO tables on this worksheet. Each table has been 'grouped' (and sub-grouped) for easy navigation. See the Instructions sheet on how to group or ungroup data.
B8: 2.10.1 - NETWORK OVERHEADS EXPENDITURE
D9: EXPENDITURE ($0's)
D10: =IF(dms_RPT="financial",dms_fy4,dms_cy4) -> 2008-09 | E10: =IF(dms_RPT="financial",dms_fy5,dms_cy5) -> 2009-10 | F10: =IF(dms_RPT="financial",dms_fy6,dms_cy6) -> 2010-11 | G10: =IF(dms_RPT="financial",dms_fy7,dms_cy7) -> 2011-12 | H10: =IF(dms_RPT="financial",dms_fy8,dms_cy8) -> 2012-13 | I10: =IF(dms_RPT="financial",dms_fy9,dms_cy9) -> 2013-14 | J10: =IF(dms_RPT="financial",dms_fy10,dms_cy10) -> 2014-15 | K10: =IF(dms_RPT="financial",dms_fy11,dms_cy11) -> 2015-16 | L10: =IF(dms_RPT="financial",dms_fy12,dms_cy12) -> 2016-17
B11: OPEX
B12: Standard Control Services | C12: Total | D12: 147453107.7 | E12: 153799477.4 | F12: 161661042.5 | G12: 151473246.9 | H12: 136261022.9 | I12: 138920548.2 | J12: 93071888.09 | K12: 91590172 | L12: 91593823.94
B13: Alternative Control Services | C13: Total | D13: 3945254.285 | E13: 3981112.789 | F13: 3623010.856 | G13: 3711860.894 | H13: 2265912.236 | I13: 1651941.182 | J13: 2285449.777 | K13: 15819749 | L13: 12164511.66
B14: CAPEX
B15: Standard Control Services | C15: Total | D15: -34033233.22 | E15: -41811294.36 | F15: -40181262.2 | G15: -46675880.78 | H15: -39254794.49 | I15: -34694663.66 | J15: -27740675.5 | K15: -26995066 | L15: -24749628.35
B16: Alternative Control Services | C16: Total | D16: -1073470.607 | E16: -1273478.182 | F16: -1132653.602 | G16: -1395832.137 | H16: -282319.598 | I16: -618411.3307 | J16: -950603.2806 | K16: -1604789.943 | L16: -669156.0954
B17: OTHER DISTRIBUTION SERVICES
B18: Negotiated Services | C18: Total | D18: 0 | E18: 0 | F18: 0 | G18: 0 | H18: 0 | I18: 0 | J18: 0 | K18: 0 | L18: 0
B19: Unregulated Services | C19: Total | D19: 2208291.938 | E19: 2176967.493 | F19: 2205702.785 | G19: 1080554.869 | H19: 842287.642 | I19: 4107893.167 | J19: 7990936.808 | K19: 3651572 | L19: 4310068.544
B23: 2.10.2 - CORPORATE OVERHEADS EXPENDITURE
D24: EXPENDITURE ($0's)
D25: =IF(dms_RPT="financial",dms_fy4,dms_cy4) -> 2008-09 | E25: =IF(dms_RPT="financial",dms_fy5,dms_cy5) -> 2009-10 | F25: =IF(dms_RPT="financial",dms_fy6,dms_cy6) -> 2010-11 | G25: =IF(dms_RPT="financial",dms_fy7,dms_cy7) -> 2011-12 | H25: =IF(dms_RPT="financial",dms_fy8,dms_cy8) -> 2012-13 | I25: =IF(dms_RPT="financial",dms_fy9,dms_cy9) -> 2013-14 | J25: =IF(dms_RPT="financial",dms_fy10,dms_cy10) -> 2014-15 | K25: =IF(dms_RPT="financial",dms_fy11,dms_cy11) -> 2015-16 | L25: =IF(dms_RPT="financial",dms_fy12,dms_cy12) -> 2016-17
B26: OPEX
B27: Standard Control Services | C27: Total | D27: 64749569.92 | E27: 64785989.76 | F27: 60199784.49 | G27: 114721651.2 | H27: 88817290.16 | I27: 119487240.8 | J27: 107199824 | K27: 135467940.1 | L27: 131273661.1
B28: Alternative Control Services | C28: Total | D28: 3836161.216 | E28: 4225292.358 | F28: 4035800.643 | G28: 5543914.324 | H28: 4215010.293 | I28: 5220957.404 | J28: 29904278.16 | K28: 24783164 | L28: 24612763.06
B29: CAPEX
B30: Standard Control Services | C30: Total | D30: -14944664.43 | E30: -17612453.14 | F30: -14962809.15 | G30: -35351022.18 | H30: -25586953.62 | I30: -37675527.18 | J30: -29575604.34 | K30: -21157649 | L30: -14512736.68
B31: Alternative Control Services | C31: Total | D31: -1043787.298 | E31: -1351586.331 | F31: -1261703.129 | G31: -2084769.337 | H31: -525165.9762 | I31: -416602.0489 | J31: -1036811.926 | K31: -1358497.125 | L31: -419078.6672
B32: OTHER DISTRIBUTION SERVICES
B33: Negotiated Services | C33: Total | D33: 0 | E33: 0 | F33: 0 | G33: 0 | H33: 0 | I33: 0 | J33: 0 | K33: 0 | L33: 0
B34: Unregulated Services | C34: Total | D34: 26018002.76 | E34: 25723627.05 | F34: 24931125.01 | G34: 19145101.98 | H34: 14700864.62 | I34: 27122571.7 | J34: 26030785.52 | K34: 12913450.67 | L34: 9029177.36

Sheet Amendments
B1: =CONCATENATE("If ",dms_TradingName," resubmits this Regulatory Reporting Statement, please use this worksheet to identify amendments made to data resubmitted to the AER.") -> If Endeavour Energy resubmits this Regulatory Reporting Statement, please use this worksheet to identify amendments made to data resubmitted to the AER.
B2: NSP data amendments
B3: Worksheet | C3: Table/Cell | D3: Reason for amendment
